bitfinex/quotes_BTCUSD_20250902
["timestamp","ask_amount","ask_price","bid_price","bid_amount"]
[1756783984297,0.030208,110360.0,110350.0,0.43384749]
[1756783984494,0.5980722,110360.0,110350.0,0.43384749]
[1756783985332,0.77929728,110360.0,110350.0,0.43484749]
[1756783985671,0.77929728,110360.0,110350.0,0.24751599]
[1756783986084,0.77929728,110360.0,110350.0,0.42875749]
[1756783986797,1.06581938,110360.0,110340.0,0.18124877]
[1756783987021,0.3116701,110360.0,110350.0,0.436003]
[1756783987222,0.027238,110360.0,110350.0,0.43373749]
[1756783987432,0.34,110370.0,110360.0,0.18122508]
[1756783987633,0.6516671,110370.0,110360.0,0.27828107]
[1756783988248,0.3116671,110370.0,110360.0,0.27828107]
[1756783988671,0.5960992,110370.0,110360.0,0.27828107]
[1756783988864,0.3116671,110370.0,110360.0,0.27828107]
[1756783989534,0.001,110370.0,110360.0,0.27828107]
[1756783989740,0.2854321,110370.0,110360.0,0.27828107]
[1756783989940,0.2864321,110370.0,110360.0,0.27828107]
[1756783990155,0.2864321,110370.0,110360.0,0.34796107]
[1756783991122,0.2854321,110370.0,110360.0,0.34796107]
[1756783992015,0.2844321,110370.0,110360.0,0.34796107]
[1756783994941,0.46564076,110370.0,110360.0,0.34796107]
[1756783995145,0.5708442,110370.0,110360.0,0.49814107]
[1756783995353,0.75205286,110370.0,110360.0,0.49814107]
[1756783995531,0.2844321,110370.0,110360.0,0.43360107]
[1756783997677,0.75205286,110370.0,110360.0,0.42838107]
[1756783998096,0.75205286,110370.0,110360.0,0.24715599]
[1756783998541,0.75205286,110370.0,110360.0,0.42838107]
[1756783998938,0.46762076,110370.0,110360.0,0.43038107]
[1756783999180,0.46762076,110370.0,110360.0,0.43352107]
[1756783999412,0.2844321,110370.0,110360.0,0.43352107]
[1756784000766,0.32835891,110380.0,110370.0,0.18120866]
[1756784000968,0.32835891,110380.0,110370.0,0.27826465]
[1756784001174,0.51153115,110380.0,110370.0,0.27312465]
[1756784001378,0.51153115,110380.0,110370.0,0.27826465]
[1756784001975,0.79696325,110380.0,110370.0,0.27826465]
[1756784002152,0.61677101,110380.0,110370.0,0.27826465]
[1756784002388,0.79796325,110380.0,110370.0,0.27826465]
[1756784002599,0.33035891,110380.0,110370.0,0.27826465]
[1756784002817,0.61479101,110380.0,110370.0,0.27826465]
[1756784003018,0.58755801,110380.0,110370.0,0.27826465]
[1756784003400,0.01869381,110380.0,110370.0,0.27826465]
[1756784003609,0.76875025,110380.0,110370.0,0.27826465]
[1756784003810,0.77073025,110380.0,110370.0,0.27826465]
[1756784005149,0.58755801,110380.0,110370.0,0.27826465]
[1756784006370,0.01869381,110380.0,110370.0,0.27826465]
[1756784006566,0.76875025,110380.0,110370.0,0.27826465]
[1756784006744,0.77073025,110380.0,110370.0,0.27826465]
[1756784006944,0.77073025,110380.0,110370.0,0.27312465]
[1756784007160,0.58755801,110380.0,110370.0,0.27826465]
[1756784007609,0.77073025,110380.0,110370.0,0.27312465]
[1756784009069,0.77073025,110380.0,110370.0,0.24667599]
[1756784009416,0.77073025,110380.0,110370.0,0.42788465]
[1756784009589,0.20186605,110380.0,110370.0,0.42788465]
[1756784009799,0.48610864,110380.0,110370.0,0.42788465]
[1756784010009,0.51334164,110380.0,110370.0,0.42788465]
[1756784010214,0.51334164,110380.0,110370.0,0.24667599]
[1756784011743,0.22909905,110380.0,110370.0,0.42929312]
[1756784012021,0.22909905,110380.0,110370.0,0.43243312]
[1756784012022,0.3301694,110380.0,110370.0,0.43243312]
[1756784012662,0.3029364,110380.0,110370.0,0.43243312]
[1756784012835,0.3019364,110380.0,110370.0,0.43243312]
[1756784013040,0.01769381,110380.0,110370.0,0.43243312]
[1756784013245,0.3019364,110380.0,110370.0,0.43443312]
[1756784013645,0.3009364,110380.0,110370.0,0.43443312]
[1756784014025,0.3009364,110380.0,110370.0,0.43543312]
[1756784014229,0.01669381,110380.0,110370.0,0.43543312]
[1756784014478,0.3009364,110380.0,110370.0,0.43543312]
[1756784015223,0.3029164,110380.0,110370.0,0.43543312]
[1756784016022,0.3029164,110380.0,110370.0,0.43029312]
[1756784016232,0.3029164,110380.0,110370.0,0.43555312]
[1756784017556,0.48410864,110380.0,110370.0,0.24924446]
[1756784017769,0.77043123,110380.0,110370.0,0.24924446]
[1756784017977,0.48618864,110380.0,110370.0,0.24924446]
[1756784018187,0.48410864,110380.0,110370.0,0.43045312]
[1756784018399,0.48410864,110380.0,110370.0,0.42845312]
[1756784018609,0.48410864,110380.0,110370.0,0.42745312]
[1756784018979,0.48410864,110380.0,110370.0,0.24624446]
[1756784019384,0.19986605,110380.0,110370.0,0.24624446]
[1756784019633,0.48410864,110380.0,110370.0,0.42745312]
[1756784019955,0.19986605,110380.0,110370.0,0.42745312]
[1756784020155,0.3009364,110380.0,110370.0,0.42962312]
[1756784020331,0.3009364,110380.0,110370.0,0.43271312]
[1756784020931,0.48410864,110380.0,110370.0,0.24624446]
[1756784021143,0.48410864,110380.0,110370.0,0.42745312]
[1756784021586,0.48410864,110380.0,110370.0,0.09132446]
[1756784021721,1.11043123,110380.0,110370.0,0.09132446]
[1756784021920,1.11043123,110380.0,110350.0,0.57794185]
[1756784021921,0.18122508,110360.0,110350.0,0.57794185]
[1756784022176,0.46753767,110360.0,110350.0,0.64365699]
[1756784022404,0.46753767,110360.0,110350.0,0.82489849]
[1756784022615,0.46753767,110360.0,110350.0,0.64365699]
[1756784023023,0.46753767,110360.0,110350.0,0.48861699]
[1756784023226,0.46753767,110360.0,110350.0,0.64369699]
[1756784024838,0.46753767,110360.0,110350.0,0.82493849]
[1756784025042,0.46753767,110360.0,110350.0,0.64369699]
[1756784025244,0.46546767,110360.0,110350.0,0.83019849]
[1756784025675,0.18122508,110360.0,110350.0,0.83019849]
[1756784025883,0.28424259,110360.0,110350.0,0.83019849]
[1756784026790,0.66139225,110370.0,110350.0,0.83019849]
[1756784027001,0.28424259,110360.0,110350.0,0.7351925]
[1756784027246,0.28424259,110360.0,110350.0,0.7382825]
[1756784027706,0.28424259,110360.0,110350.0,0.7392825]
[1756784028388,0.28424259,110360.0,110350.0,0.7412825]
[1756784029271,0.80545181,110370.0,110360.0,0.18121426]
[1756784029498,0.80545181,110370.0,110360.0,0.27839025]
[1756784030152,0.80743181,110370.0,110360.0,0.27839025]
[1756784030376,1.0916744,110370.0,110360.0,0.09717599]
[1756784030621,0.62424259,110370.0,110360.0,0.27840107]
[1756784030827,0.80752125,110370.0,110360.0,0.27840107]
[1756784031156,0.62424259,110370.0,110360.0,0.27840107]
[1756784031361,0.62424259,110370.0,110360.0,0.43332107]
[1756784031519,0.80545125,110370.0,110360.0,0.43332107]
[1756784031730,0.62424259,110370.0,110360.0,0.43332107]
[1756784032310,0.80545125,110370.0,110360.0,0.43332107]
[1756784032961,0.62424259,110370.0,110360.0,0.43332107]
[1756784033273,0.62424259,110370.0,110360.0,0.43532107]
[1756784033703,0.80545125,110370.0,110360.0,0.28040107]
[1756784033947,1.09176384,110370.0,110360.0,0.09391599]
[1756784034150,1.09176384,110370.0,110360.0,0.24875599]
[1756784034542,1.09176384,110370.0,110360.0,0.24975599]
[1756784035052,1.09176384,110370.0,110360.0,0.42898107]
[1756784035382,1.09176384,110370.0,110360.0,0.24775599]
[1756784035970,1.09176384,110370.0,110360.0,0.24675599]
[1756784036415,1.24648384,110370.0,110360.0,0.42798107]
[1756784036831,1.24648384,110370.0,110360.0,0.43015107]
[1756784036981,1.24648384,110370.0,110360.0,0.25201599]
[1756784037189,1.24648384,110370.0,110360.0,0.42798107]
[1756784037598,1.24648384,110370.0,110360.0,0.27314107]
[1756784037802,1.24648384,110370.0,110360.0,0.42782107]
[1756784038078,0.90848518,110370.0,110360.0,0.42999107]
[1756784038286,0.49468,110370.0,110360.0,0.43308107]
[1756784038475,0.62424259,110370.0,110360.0,0.43308107]
[1756784038697,0.28424259,110370.0,110360.0,0.43308107]
[1756784040029,0.28424259,110370.0,110360.0,0.43408107]
[1756784040230,0.01669381,110380.0,110370.0,0.18120866]
[1756784040461,0.3009364,110380.0,110370.0,0.27838465]
[1756784041564,0.48410864,110380.0,110370.0,0.27312465]
[1756784041766,0.3009364,110380.0,110370.0,0.43302465]
[1756784041972,0.4555764,110380.0,110370.0,0.43302465]
[1756784042191,0.3009364,110380.0,110370.0,0.43302465]
[1756784042605,0.01669381,110380.0,110370.0,0.43302465]
[1756784042828,0.3009364,110380.0,110370.0,0.43302465]
[1756784047150,0.48410864,110380.0,110370.0,0.27838465]
[1756784047371,0.48410864,110380.0,110370.0,0.42776465]
[1756784047608,0.3009364,110380.0,110370.0,0.43284465]
[1756784049855,0.09851501,110380.0,110370.0,0.43284465]
[1756784050070,0.11198722,110380.0,110370.0,0.43284465]
[1756784056128,0.25431008,110390.0,110380.0,0.18119224]
[1756784056432,0.18117583,110390.0,110380.0,0.27818823]
[1756784056854,0.18315583,110390.0,110380.0,0.27818823]
[1756784057015,0.00198,110390.0,110380.0,0.27818823]
[1756784057208,0.51500883,110400.0,110390.0,0.18117583]
[1756784057423,0.95587142,110400.0,110390.0,0.27309182]
[1756784058004,0.76068268,110400.0,110390.0,0.27309182]
[1756784058369,1.25736268,110400.0,110390.0,0.09191599]
[1756784058582,1.25936268,110400.0,110390.0,0.09191599]
[1756784058727,0.18117583,110390.0,110370.0,0.18120866]
[1756784058946,0.18117583,110390.0,110380.0,0.09191599]
[1756784059134,0.18524583,110390.0,110380.0,0.09191599]
[1756784060142,0.46948842,110390.0,110380.0,0.09191599]
[1756784060345,0.47048842,110390.0,110380.0,0.09191599]
[1756784060562,0.18624583,110390.0,110380.0,0.09191599]
[1756784060764,0.47048842,110390.0,110380.0,0.09191599]
[1756784061255,0.18119224,110380.0,110350.0,0.58994457]
[1756784061492,0.46545125,110370.0,110360.0,0.24660152]
[1756784061749,0.46743125,110370.0,110360.0,0.09200152]
[1756784062106,0.46545125,110370.0,110360.0,0.2783066]
[1756784063416,0.46743125,110370.0,110360.0,0.2783066]
[1756784064238,0.46743125,110370.0,110360.0,0.2793066]
[1756784064438,0.46545125,110370.0,110360.0,0.2813066]
[1756784065202,0.28424259,110370.0,110360.0,0.2813066]
[1756784065994,0.43884259,110380.0,110370.0,0.1811971]
[1756784066242,0.28424259,110380.0,110370.0,0.43279309]
[1756784068587,0.62001862,110390.0,110380.0,0.18118482]
[1756784068802,0.6395904,110390.0,110380.0,0.27524081]
[1756784069141,0.6415704,110390.0,110380.0,0.27818081]
[1756784069543,0.62199862,110390.0,110380.0,0.27310081]
[1756784069974,0.46739862,110390.0,110380.0,0.27310081]
[1756784070182,0.62101862,110390.0,110380.0,0.27818081]
[1756784070562,0.62201862,110390.0,110380.0,0.27818081]
[1756784071314,0.28624259,110390.0,110380.0,0.27818081]
[1756784071521,0.44074208,110390.0,110380.0,0.27818081]
[1756784071719,0.62389791,110390.0,110380.0,0.27818081]
[1756784071956,0.46731791,110390.0,110380.0,0.27818081]
[1756784072165,0.46631791,110390.0,110380.0,0.27818081]
[1756784072691,0.28514208,110390.0,110380.0,0.27818081]
[1756784072910,0.28414208,110390.0,110380.0,0.27818081]
[1756784073316,0.28514208,110390.0,110380.0,0.27818081]
[1756784073801,0.28414208,110390.0,110380.0,0.27818081]
[1756784074620,0.46531791,110390.0,110380.0,0.27818081]
[1756784074825,0.28414208,110390.0,110380.0,0.27818081]
[1756784077493,0.47889845,110400.0,110390.0,0.18117583]
[1756784077494,0.45229794,110400.0,110390.0,0.18117583]
[1756784077708,0.58188002,110400.0,110390.0,0.43277182]
[1756784078379,0.01359586,110400.0,110390.0,0.43277182]
[1756784078742,0.58198993,110400.0,110390.0,0.43277182]
[1756784078941,0.76512935,110400.0,110390.0,0.09191599]
[1756784079147,0.76720935,110400.0,110390.0,0.09191599]
[1756784079486,0.76512935,110400.0,110390.0,0.09191599]
[1756784080400,0.76612935,110400.0,110390.0,0.09191599]
[1756784080601,0.76712935,110400.0,110390.0,0.09191599]
[1756784080821,0.76512935,110400.0,110390.0,0.09191599]
[1756784081125,0.76612935,110400.0,110390.0,0.09191599]
[1756784081603,0.76712935,110400.0,110390.0,0.09191599]
[1756784083671,0.76920935,110400.0,110390.0,0.09191599]
[1756784083889,0.76712935,110400.0,110390.0,0.09191599]
[1756784084526,0.76920935,110400.0,110390.0,0.09191599]
[1756784084950,0.76712935,110400.0,110390.0,0.09191599]
[1756784086513,0.76712935,110400.0,110390.0,0.27309182]
[1756784087044,0.92164935,110400.0,110390.0,0.27309182]
[1756784088034,0.91964935,110400.0,110390.0,0.27821182]
[1756784088248,0.91966935,110400.0,110390.0,0.27821182]
[1756784088442,0.29984785,110400.0,110390.0,0.27821182]
[1756784088671,0.58298993,110400.0,110390.0,0.27821182]
[1756784089123,0.76414935,110400.0,110390.0,0.27821182]
[1756784089732,0.76314935,110400.0,110390.0,0.27821182]
[1756784089946,0.58198993,110400.0,110390.0,0.27821182]
[1756784090153,0.76314935,110400.0,110390.0,0.27821182]
[1756784090403,0.4672815,110400.0,110390.0,0.43059182]
[1756784090608,0.75142358,110400.0,110390.0,0.43273182]
[1756784091196,0.50342601,110410.0,110390.0,0.43273182]
[1756784091392,0.50342601,110410.0,110400.0,0.09489599]
[1756784091603,0.50540601,110410.0,110400.0,0.09489599]
[1756784091835,0.51926514,110410.0,110400.0,0.27819541]
[1756784092213,0.51926514,110410.0,110400.0,0.09703599]
[1756784092411,0.51926514,110410.0,110400.0,0.27819541]
[1756784092412,0.36276514,110410.0,110400.0,0.27819541]
[1756784092614,0.77466994,110410.0,110400.0,0.27819541]
[1756784092816,0.57028262,110410.0,110400.0,0.27819541]
[1756784093042,0.57128262,110410.0,110400.0,0.27819541]
[1756784093452,0.57028262,110410.0,110400.0,0.27819541]
[1756784093809,0.57128262,110410.0,110400.0,0.27819541]
[1756784094010,0.57228262,110410.0,110400.0,0.27819541]
[1756784094210,0.57128262,110410.0,110400.0,0.27819541]
[1756784094606,0.57228262,110410.0,110400.0,0.27819541]
[1756784095543,0.45495293,110410.0,110400.0,0.27819541]
[1756784095751,0.63609594,110410.0,110400.0,0.27819541]
[1756784096329,0.01633085,110410.0,110400.0,0.27819541]
[1756784096497,0.30047293,110410.0,110400.0,0.27819541]
[1756784096707,0.29947293,110410.0,110400.0,0.27819541]
[1756784096910,0.29847293,110410.0,110400.0,0.27819541]
[1756784097125,0.01433085,110410.0,110400.0,0.27819541]
[1756784097336,0.29847293,110410.0,110400.0,0.27819541]
[1756784097921,0.01433085,110410.0,110400.0,0.27819541]
[1756784098124,0.29847293,110410.0,110400.0,0.27819541]
[1756784098717,0.01433085,110410.0,110400.0,0.27819541]
[1756784099122,0.29847293,110410.0,110400.0,0.43267541]
[1756784099329,0.01433085,110410.0,110400.0,0.43267541]
[1756784099917,0.01433085,110410.0,110400.0,0.71881749]
[1756784100121,0.01433085,110410.0,110400.0,0.43467541]
[1756784100482,0.01433085,110410.0,110400.0,0.43767541]
[1756784101315,0.01433085,110410.0,110400.0,0.28319541]
[1756784101516,0.01433085,110410.0,110400.0,0.43767541]
[1756784101930,0.01433085,110410.0,110400.0,0.28319541]
[1756784102151,0.01433085,110410.0,110400.0,0.43763541]
[1756784104544,0.01433085,110410.0,110400.0,0.50727541]
[1756784104772,0.00047172,110410.0,110400.0,0.79141749]
[1756784105632,0.00047172,110410.0,110400.0,0.81235631]
[1756784106065,0.00047172,110410.0,110400.0,1.09649839]
[1756784107190,0.00047172,110410.0,110400.0,0.52821423]
[1756784107407,0.00047172,110410.0,110400.0,1.09649839]
[1756784108049,0.00047172,110410.0,110400.0,0.52821423]
[1756784108272,0.00047172,110410.0,110400.0,1.09649839]
[1756784108702,0.00047172,110410.0,110400.0,1.48649839]
[1756784108915,0.00047172,110410.0,110400.0,0.76377423]
[1756784109127,0.00047172,110410.0,110400.0,1.51367339]
[1756784112158,0.00047172,110410.0,110400.0,1.91367339]
[1756784112816,0.00047172,110410.0,110400.0,1.95538463]
[1756784117366,0.00047172,110410.0,110400.0,1.93444581]
[1756784117600,0.00047172,110410.0,110400.0,1.95538463]
[1756784118748,1e-08,110410.0,110400.0,2.28952671]
[1756784119598,1e-08,110410.0,110400.0,2.28752671]
[1756784119808,1e-08,110410.0,110400.0,2.28452671]
[1756784120025,1e-08,110410.0,110400.0,2.29152671]
[1756784120865,1e-08,110410.0,110400.0,2.27058789]
[1756784121079,1e-08,110410.0,110400.0,2.00738463]
[1756784121508,1e-08,110410.0,110400.0,2.01138463]
[1756784122687,1e-08,110410.0,110400.0,1.28870047]
[1756784122895,1e-08,110410.0,110400.0,2.01134463]
[1756784123106,1e-08,110410.0,110400.0,1.28870047]
[1756784123330,0.28612209,110410.0,110400.0,0.57700165]
[1756784123543,0.28820209,110410.0,110400.0,0.54978665]
[1756784123756,0.00198001,110410.0,110400.0,0.83908873]
[1756784123972,1e-08,110410.0,110400.0,0.83908873]
[1756784124186,1e-08,110410.0,110400.0,0.86002755]
[1756784124380,1e-08,110410.0,110400.0,0.83208873]
[1756784125003,1e-08,110410.0,110400.0,0.84902755]
[1756784125247,1e-08,110410.0,110400.0,0.85102755]
[1756784125463,1e-08,110410.0,110400.0,1.13516963]
[1756784125880,1e-08,110410.0,110400.0,1.13316963]
[1756784126090,1e-08,110410.0,110400.0,1.13516963]
[1756784126295,1e-08,110410.0,110400.0,1.13816963]
[1756784126679,0.00198001,110410.0,110400.0,1.13816963]
[1756784126829,1e-08,110410.0,110400.0,1.13816963]
[1756784128564,1e-08,110410.0,110400.0,1.16538563]
[1756784129827,1e-08,110410.0,110400.0,0.59710147]
[1756784130046,1e-08,110410.0,110400.0,1.16538563]
[1756784133126,1e-08,110410.0,110400.0,1.01102563]
[1756784133337,1e-08,110410.0,110400.0,1.16534563]
[1756784133568,1e-08,110410.0,110400.0,0.88095783]
[1756784134472,1e-08,110410.0,110400.0,1.28095783]
[1756784134971,1e-08,110410.0,110400.0,0.99706147]
[1756784135192,1e-08,110410.0,110400.0,1.28095783]
[1756784136658,1e-08,110410.0,110400.0,1.95485419]
[1756784136868,1e-08,110410.0,110400.0,1.55485419]
[1756784137495,1e-08,110410.0,110400.0,1.80053419]
[1756784137716,1e-08,110410.0,110400.0,1.95485419]
[1756784143115,1e-08,110410.0,110400.0,1.67095783]
[1756784143313,1e-08,110410.0,110400.0,1.95485419]
[1756784144304,1e-08,110410.0,110400.0,2.00485419]
[1756784144597,1e-08,110410.0,110400.0,2.21815419]
[1756784144800,1e-08,110410.0,110400.0,2.26815419]
[1756784145000,1e-08,110410.0,110400.0,2.11383419]
[1756784145199,1e-08,110410.0,110400.0,2.26811419]
[1756784149035,0.00229,110450.0,110440.0,0.20203262]
[1756784149209,0.00034151,110450.0,110440.0,0.80172497]
[1756784149405,0.00232151,110450.0,110440.0,0.80172497]
[1756784149615,0.00440151,110450.0,110440.0,0.82893397]
[1756784149813,0.00440151,110450.0,110440.0,0.86950471]
[1756784150025,0.0265161,110450.0,110440.0,0.86950471]
[1756784150228,0.0275161,110450.0,110440.0,0.86950471]
[1756784150887,0.0275161,110450.0,110440.0,0.87250471]
[1756784151652,0.5002,110470.0,110460.0,0.20199983]
[1756784151858,0.50218,110470.0,110460.0,0.73205218]
[1756784152531,0.50218,110470.0,110460.0,0.75925518]
[1756784152979,0.50518,110470.0,110460.0,0.75925518]
[1756784153862,0.50318,110470.0,110460.0,0.75925518]
[1756784154294,0.50418,110470.0,110460.0,0.75925518]
[1756784154503,0.50318,110470.0,110460.0,0.75925518]
[1756784155124,0.50218,110470.0,110460.0,0.75925518]
[1756784155295,0.50218,110470.0,110460.0,0.47635882]
[1756784155520,0.50218,110470.0,110460.0,0.76025518]
[1756784155710,0.50218,110470.0,110460.0,0.76731518]
[1756784155910,0.50218,110470.0,110460.0,0.76125518]
[1756784156117,0.50218,110470.0,110460.0,0.47935882]
[1756784156340,0.50218,110470.0,110460.0,0.76325518]
[1756784156554,0.50218,110470.0,110460.0,0.76523518]
[1756784156762,0.50218,110470.0,110460.0,0.48243882]
[1756784156970,0.50218,110470.0,110460.0,0.47935882]
[1756784157177,0.50218,110470.0,110460.0,0.32511882]
[1756784157392,0.50218,110470.0,110460.0,0.47931882]
[1756784157954,0.50218,110470.0,110460.0,0.48129882]
[1756784158166,0.50218,110470.0,110460.0,0.48437882]
[1756784158354,0.50218,110470.0,110460.0,0.76827518]
[1756784158915,0.50218,110470.0,110460.0,0.47931882]
[1756784159083,0.5002,110470.0,110460.0,0.76519518]
[1756784159313,0.5002,110470.0,110460.0,0.76827518]
[1756784159505,0.50218,110470.0,110460.0,0.48437882]
[1756784159682,0.50218,110470.0,110460.0,0.76827518]
[1756784159896,0.50218,110470.0,110460.0,0.32511882]
[1756784160141,0.50426,110470.0,110460.0,0.47927882]
[1756784160352,0.50218,110470.0,110460.0,0.47927882]
[1756784160901,0.50218,110470.0,110460.0,0.47727882]
[1756784161036,0.50218,110470.0,110460.0,0.47827882]
[1756784161917,0.50218,110470.0,110460.0,0.47627882]
[1756784162541,0.50218,110470.0,110460.0,0.32211882]
[1756784162754,0.50218,110470.0,110460.0,0.47627882]
[1756784162964,0.50218,110470.0,110460.0,0.32211882]
[1756784163172,0.96920098,110470.0,110460.0,0.12011899]
[1756784163372,0.96920098,110470.0,110460.0,0.430137]
[1756784163836,0.96920098,110470.0,110460.0,0.24907599]
[1756784164044,0.96920098,110470.0,110460.0,0.24807599]
[1756784164460,0.78815636,110470.0,110460.0,0.431137]
[1756784164668,0.50426,110470.0,110460.0,0.431137]
[1756784164885,0.78815636,110470.0,110460.0,0.429137]
[1756784165096,0.50526,110470.0,110460.0,0.429137]
[1756784165532,0.50526,110470.0,110460.0,0.427137]
[1756784165742,0.50626,110470.0,110460.0,0.427137]
[1756784166186,0.50218,110470.0,110460.0,0.427137]
[1756784166439,0.50318,110470.0,110460.0,0.427137]
[1756784168167,0.50318,110470.0,110460.0,0.45023582]
[1756784168364,0.5012,110470.0,110460.0,0.45332582]
[1756784169208,0.5012,110470.0,110460.0,0.73722218]
[1756784169423,0.5012,110470.0,110460.0,0.76442418]
[1756784169847,0.5012,110470.0,110460.0,0.81442418]
[1756784170266,0.5002,110470.0,110460.0,0.81442418]
[1756784170480,0.5002,110470.0,110460.0,0.81742418]
[1756784171325,0.5002,110470.0,110460.0,0.84532357]
[1756784171533,0.05247876,110470.0,110460.0,1.46921993]
[1756784172689,0.05247876,110470.0,110460.0,1.84432054]
[1756784172903,0.05247876,110470.0,110460.0,1.88157289]
[1756784174046,1e-08,110470.0,110460.0,1.88157289]
[1756784179005,1e-08,110470.0,110460.0,1.88149289]
[1756784181204,0.12068976,110500.0,110490.0,0.20195067]
[1756784181416,0.12489119,110500.0,110490.0,0.51754666]
[1756784181850,0.12281119,110500.0,110490.0,0.51754666]
[1756784182672,0.12381119,110500.0,110490.0,0.51754666]
[1756784182913,0.12589119,110500.0,110490.0,0.51754666]
[1756784183558,0.12381119,110500.0,110490.0,0.51754666]
[1756784183754,0.12381119,110500.0,110490.0,0.36346666]
[1756784183972,0.12381119,110500.0,110490.0,0.51754666]
[1756784184178,0.12589119,110500.0,110490.0,0.51750666]
[1756784184614,0.12381119,110500.0,110490.0,0.51750666]
[1756784186130,0.12381119,110500.0,110490.0,0.58526827]
[1756784186340,0.09852144,110500.0,110490.0,0.58526827]
[1756784186545,0.09654144,110500.0,110490.0,0.87441463]
[1756784187538,0.09554144,110500.0,110490.0,0.87441463]
[1756784187737,0.09554144,110500.0,110490.0,0.87641463]
[1756784187946,0.3834978,110500.0,110490.0,0.52576484]
[1756784188125,0.41712606,110500.0,110490.0,0.52576484]
[1756784188315,0.1332297,110500.0,110490.0,0.52776484]
[1756784188733,0.1332297,110500.0,110490.0,0.52576484]
[1756784189133,0.1332297,110500.0,110490.0,0.52376484]
[1756784190035,0.1311497,110500.0,110490.0,0.52476484]
[1756784190466,0.1311497,110500.0,110490.0,0.52376484]
[1756784190846,0.09420018,110500.0,110490.0,0.52476484]
[1756784191466,0.09420018,110500.0,110490.0,0.52785484]
[1756784191902,0.1315252,110500.0,110490.0,0.52785484]
[1756784192535,0.09222018,110500.0,110490.0,0.80765302]
[1756784193059,0.09222018,110500.0,110490.0,0.52375666]
[1756784195281,0.09222018,110500.0,110490.0,0.55095166]
[1756784196127,0.37569332,110500.0,110490.0,0.55095166]
[1756784196539,0.09222018,110500.0,110490.0,0.55095166]
[1756784196758,0.37569332,110500.0,110490.0,0.55095166]
[1756784196958,0.37767332,110500.0,110490.0,0.39691166]
[1756784197158,0.37767332,110500.0,110490.0,0.51850666]
[1756784199901,0.66114646,110500.0,110490.0,0.51850666]
[1756784200338,0.37767332,110500.0,110490.0,0.51850666]
[1756784200559,0.66114646,110500.0,110490.0,0.51850666]
[1756784200784,0.66322646,110500.0,110490.0,0.49756784]
[1756784201699,0.66114646,110500.0,110490.0,0.49756784]
[1756784202883,0.66114646,110500.0,110490.0,0.34352784]
[1756784203102,0.66322646,110500.0,110490.0,0.49756784]
[1756784203723,0.66322646,110500.0,110490.0,0.34352784]
[1756784203956,0.66322646,110500.0,110490.0,0.49752784]
[1756784204570,0.66322646,110500.0,110490.0,0.34352784]
[1756784204767,0.66322646,110500.0,110490.0,0.49752784]
[1756784205134,0.09420018,110500.0,110490.0,0.49752784]
[1756784205337,0.66114646,110500.0,110490.0,0.49752784]
[1756784205995,0.66322646,110500.0,110490.0,0.49752784]
[1756784206196,1.12769507,110500.0,110490.0,0.34352784]
[1756784206506,1.12769507,110500.0,110490.0,0.31651599]
[1756784207087,1.12769507,110500.0,110490.0,0.09291599]
[1756784207303,1.46769507,110500.0,110490.0,0.09291599]
[1756784207536,1.48724358,110500.0,110490.0,0.24691599]
[1756784208224,1.46769507,110500.0,110490.0,0.24591599]
[1756784208675,1.46869507,110500.0,110490.0,0.24591599]
[1756784208902,1.46769507,110500.0,110490.0,0.24591599]
[1756784209125,1.47169507,110500.0,110490.0,0.24591599]
[1756784209360,1.47369507,110500.0,110490.0,0.09191599]
[1756784210015,1.37949489,110500.0,110490.0,0.09191599]
[1756784211964,0.18102824,110480.0,110470.0,0.07354631]
[1756784212165,1.03172766,110480.0,110470.0,0.1654623]
[1756784212308,1.03172766,110480.0,110470.0,0.3194623]
[1756784212510,1.03172766,110480.0,110470.0,0.24591599]
[1756784213170,1.03272766,110480.0,110470.0,0.24595599]
[1756784213381,1.03272766,110480.0,110470.0,0.24591599]
[1756784215636,1.03272766,110480.0,110470.0,0.09191599]
[1756784215848,1.03272766,110480.0,110470.0,0.24595599]
[1756784216577,1.03261766,110480.0,110470.0,0.24595599]
[1756784218571,0.74914452,110480.0,110470.0,0.24595599]
[1756784218778,0.74914452,110480.0,110470.0,0.25110599]
[1756784219691,0.74897452,110480.0,110470.0,0.43215061]
[1756784220155,0.74914452,110480.0,110470.0,0.43215061]
[1756784220376,0.74897452,110480.0,110470.0,0.43215061]
[1756784220602,0.74914452,110480.0,110470.0,0.09505599]
[1756784220850,0.74914452,110480.0,110470.0,0.43215061]
[1756784221259,0.74914452,110480.0,110470.0,0.27811061]
[1756784221466,0.56794628,110480.0,110470.0,0.27811061]
[1756784221676,0.56794628,110480.0,110470.0,0.43215061]
[1756784222137,0.001,110480.0,110470.0,0.43215061]
[1756784222374,0.28447314,110480.0,110470.0,0.43215061]
[1756784222867,0.56794628,110480.0,110470.0,0.43215061]
[1756784223673,0.28447314,110480.0,110470.0,0.43215061]
[1756784223897,0.56794628,110480.0,110470.0,0.43215061]
[1756784224559,0.001,110480.0,110470.0,0.43215061]
[1756784224765,0.28447314,110480.0,110470.0,0.43215061]
[1756784224992,0.28447314,110480.0,110470.0,0.43211061]
[1756784225547,0.28347314,110480.0,110470.0,0.43211061]
[1756784225783,0.18101185,110490.0,110480.0,0.18101532]
[1756784226004,0.18119824,110480.0,110470.0,0.18418462]
[1756784226226,0.18119824,110480.0,110470.0,0.15714]
[1756784226398,0.18119824,110480.0,110470.0,0.33818462]
[1756784226660,0.18119824,110480.0,110470.0,0.34028462]
[1756784226808,0.74814452,110480.0,110470.0,0.34028462]
[1756784227640,0.74814452,110480.0,110470.0,0.43320061]
[1756784228100,0.74814452,110480.0,110470.0,0.43220061]
[1756784228318,0.74914452,110480.0,110470.0,0.43220061]
[1756784228626,0.56811628,110480.0,110470.0,0.43220061]
[1756784228790,0.56794628,110480.0,110470.0,0.43220061]
[1756784231015,0.001,110480.0,110470.0,0.43220061]
[1756784231224,0.56794628,110480.0,110470.0,0.43220061]
[1756784241276,0.74914452,110480.0,110470.0,0.43220061]
[1756784241710,1.03261766,110480.0,110470.0,0.09191599]
[1756784241938,1.03272766,110480.0,110470.0,0.24591599]
[1756784242154,0.74925452,110480.0,110470.0,0.24591599]
[1756784242828,0.74914452,110480.0,110470.0,0.24591599]
[1756784245649,0.74925452,110480.0,110470.0,0.24587599]
[1756784246924,0.74925452,110480.0,110470.0,0.09191599]
[1756784247142,0.76881229,110480.0,110470.0,0.09191599]
[1756784248633,0.92277229,110480.0,110470.0,0.09191599]
[1756784249941,0.92266229,110480.0,110470.0,0.09191599]
[1756784252533,0.90310452,110480.0,110470.0,0.09191599]
[1756784252932,0.90321452,110480.0,110470.0,0.09191599]
[1756784253172,0.74914452,110480.0,110470.0,0.09191599]
[1756784253380,0.90310452,110480.0,110470.0,0.09191599]
[1756784255063,0.90310452,110480.0,110470.0,0.09496599]
[1756784255575,0.61987198,110480.0,110470.0,0.09496599]
[1756784258476,0.61987198,110480.0,110470.0,0.09191599]
[1756784258875,0.61987198,110480.0,110470.0,0.09496599]
[1756784259737,0.18202824,110480.0,110470.0,0.09695599]